Cogmind - Beta 14 @@@ ROGUE MODE // 2024.11.04 @ 20:18:02 Player: Dadrick Result: Destroyed by H-55 Commando with Gauss Rifle Performance ------------- Evolutions (0) 0 Regions Visited (3) 600 Robots Destroyed (43) 215 Value Destroyed (1184) 1184 Prototype IDs (27) 540 Alien Tech Used (0) 0 Bonus (300) 300 TOTAL SCORE: 2839 Bonus ------- Aligned with FarCom 300 Cogmind --------- Core Integrity 0/250 Matter 297/300 Energy 100/100 System Corruption 5% Temperature Cool (0) Movement Core (50) Location -10/Exiles Parts ------- > --- POWER (1) -------- (None) > --- PROPULSION (2) --- (None) > --- UTILITY (2) ------ (None) > --- WEAPON (2) ------- (None) > --- INVENTORY (5) ---- Ion Engine Experimental Sensor Array Seismic Detector YOLO Cannon Peak State ------------ > --- POWER ------------ Improved Ion Engine > --- PROPULSION ------- Light Treads Light Treads > --- UTILITY ---------- Small Storage Unit Light Armor Plating > --- WEAPON ----------- YOLO Cannon > --- INVENTORY -------- Ion Engine Experimental Sensor Array Seismic Detector Light Cannon Light Cannon [Rating: 27] Favorites ----------- Power Ion Engine Engine Ion Engine Power Core Light Nuclear Core Propulsion Light Treads Treads Light Treads Utility Small Storage Unit Device Seismic Detector Storage Small Storage Unit Protection Light Armor Plating Weapon Light Cannon Energy Cannon YOLO Cannon Ballistic Gun Assault Rifle Ballistic Cannon Light Cannon Launcher Grenade Launcher Build | -11 -10 -10 -10 ------- Run | Yrd Mat Min Exi Slots Evolved . | . . . . Power . | . . . . Propulsion . | . . . . Utility . | . . . . Weapon . | . . . . Parts Attached 33 | 7 16 1 9 Power 5 | 1 3 . 1 Engine 4 | 1 2 . 1 Core 1 | . 1 . . Reactor . | . . . . Propulsion 6 | 2 2 . 2 Treads 6 | 2 2 . 2 Leg . | . . . . Wheel . | . . . . Hover . | . . . . Flight . | . . . . Utility 8 | 2 4 1 1 Device 2 | 1 . 1 . Storage 3 | 1 2 . . Processor . | . . . . Hackware . | . . . . Protection 3 | . 2 . 1 Artifact . | . . . . Weapon 14 | 2 7 . 5 Energy Gun . | . . . . Energy Cannon 2 | . . . 2 Ballistic Gun 4 | 2 2 . . Ballistic Cannon 6 | . 4 . 2 Launcher 2 | . 1 . 1 Special Weapon . | . . . . Impact Weapon . | . . . . Slashing Weapon . | . . . . Piercing Weapon . | . . . . Special Melee Weapon . | . . . . Unidentified Prototypes . | . . . . Parts Lost 7 | . 1 . 6 Power . | . . . . Propulsion 4 | . . . 4 Utility 1 | . . . 1 Weapon 2 | . 1 . 1 Highest Loss Streak 3 | . 1 . 3 To Critical Strikes . | . . . . Average Slot Usage (%) 99 | . 99 100 96 Engine 11 | . 10 14 13 Core 2 | . 3 . . Treads 27 | . 28 28 27 Device 8 | . 7 11 10 Storage 13 | . 14 14 13 Protection 4 | . 6 2 2 Ballistic Gun 12 | . 20 . . Ballistic Cannon 15 | . 7 28 24 Peak Build Rating 27 | 7 10 8 27 Average Rating 8 | 5 7 7 10 On Entrance 5 | . 7 7 8 Naked Turns 2 | . . . 2 Heaviest Build 31 | 13 19 19 31 Greatest Support 40 | 40 40 40 40 Greatest Overweight (x) 1 | . . . 1 Average Overweight (x) . | . . . . Largest Inventory Capacity 25 | 8 25 8 8 Average Capacity 7 | 7 8 8 7 Most Carried 8 | 6 8 8 8 Average Carried 7 | 3 7 7 7 Final Capacity 8 | 8 8 8 5 Final Carried 8 | 6 8 8 5 Class Distribution -------------------- 100% | Mutant Dominant Class ---------------- Mutant | -10/Materials Mutant | -10/Mines Mutant | -10/Exiles Resources | -11 -10 -10 -10 ----------- Run | Yrd Mat Min Exi Matter Collected 1172 | 316 681 36 139 Remotely . | . . . . Salvage Created 1243 | 96 717 43 387 Parts 84 | 8 50 4 22 Haulers Intercepted 1 | . 1 . . Recyclers Shooed 1 | . 1 . . Parts Field Recycled . | . . . . Retrieved Matter . | . . . . Parts Self-Destructed . | . . . . Prevented . | . . . . Kills | -11 -10 -10 -10 ------- Run | Yrd Mat Min Exi Combat Hostiles Destroyed 30 | . 16 . 14 Guns 12 | . 12 . . Cannons 6 | . 2 . 4 AOE 11 | . 2 . 9 Classes Destroyed 13 | 2 6 1 4 Worker 3 | . 2 1 . Builder 1 | . . 1 . Tunneler 2 | 2 . . . Hauler 1 | . 1 . . Recycler 3 | 1 2 . . Operator 1 | . 1 . . Watcher 2 | . 2 . . Swarmer 6 | . 6 . . Grunt 15 | . 10 . 5 Brawler 1 | . . . 1 Duelist 1 | . . . 1 Hunter 3 | . . . 3 Programmer 4 | . . . 4 Best Kill Streak 12 | 1 3 2 12 Combat Bots Only 12 | . 3 . 12 Max Kills in Single Turn 4 | 1 2 1 4 Gunslinging . | . . . . Exploded 3 | . 2 . 3 Melee . | . . . . Uniques/NPCs Destroyed . | . . . . Combat | -11 -10 -10 -10 -------- Run | Yrd Mat Min Exi Hostile Shots Fired 208 | . 82 . 126 Missed 70 | . 24 . 46 Damage Taken 1845 | . 595 . 1250 Core 253 | . 66 . 187 Absorbed by Shields . | . . . . Core Remaining (%) 100 | 100 . . . Volleys Fired 115 | 13 80 2 20 Largest 2 | 2 2 2 2 Hottest 100 | 40 70 70 100 Shots Fired 210 | 26 158 4 22 Gun 160 | 26 134 . . Cannon 46 | . 23 4 19 Launcher 4 | . 1 . 3 Special . | . . . . Kinetic 198 | 26 157 4 11 Thermal 8 | . . . 8 Explosive 4 | . 1 . 3 Electromagnetic . | . . . . Robot Hit Streak 13 | 5 13 9 4 Robot Miss Streak 5 | 4 5 . 3 Penetration Max . | . . . . Secondary Targets 2 | . 2 . . Max Gunslinging Chain 1 | . 1 . . Shots Hit Robots 128 | 16 100 2 10 Core Hits 64 | 4 37 2 21 Critical Kills 1 | . . . 1 Critical Parts Destroyed 1 | . 1 . . Critical Strikes 3 | . 1 1 1 Meltdown 1 | . . . 1 Destroy 1 | . 1 . . Blast 1 | . . 1 . Melee Attacks . | . . . . Impact . | . . . . Slashing . | . . . . Piercing . | . . . . Sneak Attacks . | . . . . Combat Hostiles . | . . . . Follow-up Attacks . | . . . . Damage Inflicted 3662 | 194 1521 52 1895 Guns 1301 | 194 1107 . . Cannons 1114 | . 282 52 780 Explosions 1247 | . 132 . 1115 Melee . | . . . . Ramming . | . . . . Kinetic 1746 | 194 1389 52 111 Thermal 1684 | . . . 1684 Explosive 232 | . 132 . 100 Electromagnetic . | . . . . Impact . | . . . . Slashing . | . . . . Piercing . | . . . . Highest Corruption 5 | . . . 5 Average Corruption 4 | . . . 4 Corruption Purged . | . . . . Corruption Blocked . | . . . . Effects 3 | . . . 3 Message Errors 2 | . . . 2 Matter Fused 1 | . . . 1 Overload Shots . | . . . . Overflow Damage 141 | . . . 141 Projectiles 111 | . . . 111 Explosions 30 | . . . 30 Melee . | . . . . Knockbacks 4 | . 1 1 2 Impact . | . . . . Kinetic 4 | . 1 1 2 Secondary . | . . . . Self-Inflicted Damage . | . . . . Shots . | . . . . Rammed . | . . . . Targets Rammed . | . . . . Kicked . | . . . . Crushed . | . . . . Highest Temperature 72 | . 72 18 72 Average Temperature 22 | . 22 9 23 Received Heat Transfer 249 | . 219 . 30 Siege Activations . | . . . . Robots Corrupted . | . . . . Combat Hostiles . | . . . . Parts Fried . | . . . . Impact Corruptions . | . . . . Robots Melted 1 | . . . 1 Combat Hostiles 1 | . . . 1 Parts Melted 1 | . . . 1 Heat Transferred 1440 | . . . 1440 Parts Sabotaged . | . . . . Parts Stolen . | . . . . Parts Stripped . | . . . . Power Chain Reactions . | . . . . Alert | -11 -10 -10 -10 ------- Run | Yrd Mat Min Exi Peak Influence 218 | 15 218 68 . Initial 58 | . 9 58 . Average 89 | 5 113 47 . Maximum Alert Level 1 | . 1 . . Low Security (%) 91 | 100 87 100 . Level 1 8 | . 12 . . Level 2 . | . . . . Level 3 . | . . . . Level 4 . | . . . . Level 5 . | . . . . High Security . | . . . . Max Security . | . . . . Squads Dispatched 3 | . 3 . . Investigation 1 | . 1 . . Extermination . | . . . . Reinforcement 2 | . 2 . . Assault . | . . . . Garrison . | . . . . Intercept . | . . . . Searches Triggered . | . . . . Construction Impeded . | . . . . Haulers Reinforced . | . . . . Active Scanning Responses . | . . . . Cargo Convoy Interrupts . | . . . . Stealth | -11 -10 -10 -10 --------- Run | Yrd Mat Min Exi Distress Signals 5 | . 5 . . Communications Jammed . | . . . . Distress Signals . | . . . . Times Spotted 55 | . 34 . 21 Peak Tracking Total 8 | . 4 . 8 Tactical Retreats 1 | . 1 . . Traps | -11 -10 -10 -10 ------- Run | Yrd Mat Min Exi Traps Triggered 1 | . 1 . . Indirectly . | . . . . Trap Hack Attempts . | . . . . Triggered . | . . . . Disarmed . | . . . . Reprogrammed . | . . . . Reused . | . . . . Traps Extracted . | . . . . Installed . | . . . . Triggered . | . . . . Machines | -11 -10 -10 -10 ---------- Run | Yrd Mat Min Exi Machines Disabled 2 | . 1 . 1 Max in Single Turn 1 | . 1 . 1 Machines Repaired . | . . . . Machines Dismantled . | . . . . Machines Sabotaged . | . . . . Overloaded Fab Kills . | . . . . Hacking | -11 -10 -10 -10 --------- Run | Yrd Mat Min Exi Machines Accessed 9 | . 8 . 1 Terminals 6 | . 6 . . Fabricators . | . . . . Repair Stations . | . . . . Recycling Units 2 | . 2 . . Scanalyzers . | . . . . Garrison Access . | . . . . Total Hacks 17 | . 16 . 1 Successful 11 | . 10 . 1 Failed 6 | . 6 . . Catastrophic 1 | . 1 . . Database Lockouts . | . . . . Manual 6 | . 5 . 1 Terminals 13 | . 13 . . Fabricators . | . . . . Repair Stations . | . . . . Recycling Units 3 | . 3 . . Scanalyzers . | . . . . Garrison Access . | . . . . Terminal Hacks 9 | . 8 . 1 Robot Analysis 1 | . 1 . . Prototype ID Bank 2 | . 2 . . Locate Traps 3 | . 3 . . Hauler Manifests 1 | . 1 . . Zone Layout 1 | . 1 . . Derelict Proto ID Bank 1 | . . . 1 Fabricator Hacks . | . . . . Repair Station Hacks . | . . . . Recycling Unit Hacks 2 | . 2 . . Report Inventory 2 | . 2 . . Scanalyzer . | . . . . Garrison Access Hacks . | . . . . Unauthorized Hacks . | . . . . Terminals . | . . . . Fabricators . | . . . . Repair Stations . | . . . . Recycling Units . | . . . . Scanalyzers . | . . . . Garrison Access . | . . . . Data Cores Recovered . | . . . . Used . | . . . . Hacking Detections 6 | . 6 . . Full Trace Events 1 | . 1 . . Feedback Events . | . . . . Feedback Blocked . | . . . . Robot Schematics Acquired . | . . . . Robots Built . | . . . . Authchips . | . . . . Time . | . . . . Total Robot Build Rating . | . . . . Part Schematics Acquired . | . . . . Parts Built . | . . . . Authchips . | . . . . Time . | . . . . Total Part Build Rating . | . . . . Parts Repaired . | . . . . Time . | . . . . Parts Recycled . | . . . . Recycled Matter . | . . . . Retrieved Matter . | . . . . Retrieved Components . | . . . . Parts Scanalyzed . | . . . . Part Schematics Acquired . | . . . . Parts Damaged . | . . . . Bothacking | -11 -10 -10 -10 ------------ Run | Yrd Mat Min Exi Used RIF Installer . | . . . . Robots Hacked . | . . . . Non-combat . | . . . . Combat . | . . . . Robot Hacks Applied . | . . . . Relay Couplers Released . | . . . . Fabnet Peak Effective % . | . . . . Robots Rewired . | . . . . Allies Hacked . | . . . . Hacks Repelled . | . . . . Allies | -11 -10 -10 -10 -------- Run | Yrd Mat Min Exi Total Allies . | . . . . Largest Group . | . . . . Highest-Rated Group . | . . . . Highest-Rated Ally . | . . . . Total Orders . | . . . . Ally Attacks . | . . . . Total Damage . | . . . . Kills . | . . . . Allies Corrupted . | . . . . Allies Melted . | . . . . Intel | -11 -10 -10 -10 ------- Run | Yrd Mat Min Exi Robot Analysis Total 1 | . 1 . . Derelict Logs Recovered 2 | . . 2 . Drone Launches . | . . . . Drone Recoveries . | . . . . Exploration | -11 -10 -10 -10 ------------- Run | Yrd Mat Min Exi Turns Passed 2760 | 147 1516 566 531 Spaces Moved 1443 | 60 761 339 283 Core 5 | 3 . . 2 Treads 1438 | 57 761 339 281 Legs . | . . . . Wheels . | . . . . Hover . | . . . . Flight . | . . . . Fastest Speed 50 | 50 160 160 50 Average Speed 159 | 154 160 160 159 Slowest Speed 240 | 160 160 160 240 Overloaded Moves . | . . . . Propulsion Burnouts . | . . . . Robots Hopped . | . . . . Cave-ins Triggered . | . . . . Exploration Rate (%) 54 | 5 94 71 47 Regions Visited 3 Branch Regions 2 Pre-discovered Areas . | . . . . Known Exits Taken . | . . . . Unknown Exits Taken 3 | 1 1 1 . Scrap Searched 1 | . . 1 . Spaces Dug . | . . . . Terrain Destroyed 37 | . 8 . 29 Melee . | . . . . Projectile 2 | . . . 2 AOE 35 | . 8 . 27 Terrain Rammed . | . . . . Walls Destroyed . | . . . . Machines Disabled . | . . . . Actions | -11 -10 -10 -10 --------- Run | Yrd Mat Min Exi Total 1679 | 85 907 359 328 Wait 40 | . 22 16 2 Move 1440 | 59 760 338 283 Hop . | . . . . Pick Up 19 | 6 10 1 2 Fast Attach 15 | 7 6 . 2 Attach 6 | . 1 . 5 Detach 4 | . 1 . 3 Swap 12 | . 9 1 2 Drop 28 | . 18 1 9 Fire 115 | 13 80 2 20 Melee . | . . . . Ram . | . . . . Kick . | . . . . Crush . | . . . . Escape Stasis . | . . . . Rewire . | . . . . Trap . | . . . . Miscellaneous . | . . . . Route ------- -11/Scrapyard -10/Materials (discovered 4 exits: [*Mat x3] / [*Min]) -10/Mines (discovered 2 exits: [*Mat] / *Exi) -10/Exiles History --------- Turn | Location | Event 12 | -11/Scrapyard | Discovered new exit (range 15) 148 | -11/Scrapyard | Entered Materials 301 | -10/Materials | Build established: Mutant 409 | -10/Materials | Discovered new exit (range 6) 496 | -10/Materials | Discovered new exit (range 15) 1017 | -10/Materials | Discovered new exit (range 14) 1162 | -10/Materials | Discovered new exit (range 16) 1664 | -10/Materials | Entered Mines 1684 | -10/Mines | Discovered new exit (range 5) 1784 | -10/Mines | Found a damaged Exp. Sensor Array with a note attached 1789 | -10/Mines | Found Prototype Device 2153 | -10/Mines | Found a hidden stash of uninstalled traps 2224 | -10/Mines | Deemed a non-threat by the Exiles lab entrance 2224 | -10/Mines | Discovered new exit (range 5) 2230 | -10/Mines | Entered Exiles 2274 | -10/Exiles | Met 8R-AWN 2296 | -10/Exiles | Met EX-HEX 2342 | -10/Exiles | Met EX-BIN 2362 | -10/Exiles | Aligned with FarCom system 2363 | -10/Exiles | Given EX-Vault access code 2403 | -10/Exiles | Opened EX-Vault 2440 | -10/Exiles | Warned to stay clear of 0b10 Research branches 2468 | -10/Exiles | Exiles lab attacked by MAIN.C 2553 | -10/Exiles | Found YOLO Cannon 2636 | -10/Exiles | Core integrity fell below 50% 2673 | -10/Exiles | Lost 3 parts (2n1w) 2675 | -10/Exiles | Destroyed 12 combat bots 2751 | -10/Exiles | Core integrity fell below 20% 2761 | -10/Exiles | Destroyed by H-55 Commando with Gauss Rifle Last Messages --------------- 02714_ Acquired 11 matter. 02724_ CL3 |XV33 02735_ Slug penetrates Machine. 02743_ Acquired 7 matter. 02752_ Penetrated by Slug. 02753_ G-34 Mercenary destroyed. 02753_ P-60 Hacker destroyed. 02753_ Destroyed Gravmag System. 02753_ Machine disabled. 02754_ Chain reaction triggered in Rnf. Ion Engine. 02754_ H-55 Commando destroyed. 02755_ Lgt. Armor Plating destroyed. 02756_ Penetrated by Slug. 02757_ System corrupted: Matter fused (-8). 02758_ Dropped Lgt. Cannon. 02759_ Penetrated by Slug. 02759_ Lgt. Treads destroyed. 02759_ Dropped Sml. Storage Unit. 02759_ Dropped Imp. Ion Engine. 02761_ Penetrated by Slug. Map ----- +----------------------------------------------------+ | ???????????????????????##"###??# #?#"""""""#?? | | ???????????????????????? ??????# #?#"""""""#?? | | ???????????????????????????????# #?#"""""""#?? | | ??????????????????????????????## ###"" """"#?? | | ??????????????????????????????#" """"#?? | | ??????????????????????????????#" """#?? | | ??????????????????????????????#" """#?? | | ??????????????????????????????#" """#?? | | ??????????????????????????????#" """#?? | | ??????????????????????????????#" """#?? | | ??????????????????????????????## """"?? | | ???????????????????????????????# % """#?? | | ???????????????????????????????# "X" """"?? | | ???????????????????????????????# * """ #?? | | ???????????????????????????????# % """""""""#?? | | ??????????????????????????????## % ###########?? | | ?????????????????#???????????## #???????????? | | ???????????????#?# ##??######" ##??????????? | | ????????????####X# #"###"""""" ###????????? | | ???????????? """""" " " #??####### | | ???????????? "" """ " #####"""""" | | ??????????? " " " """ | | ??????????? "" | | ?????????? =[ " | | ?????????? = | | ?????????? @ = =%[ %= | | ??????????" * = p | | ???????????"" ]]b = ! ! | | ??????????? !#; [| %* | | ??????????? hg ""##? = | | ???????????? h ""##??? ;; % | | ???????????? % """##?????#### ; | | ???????????? ""??????????#### | | ????????????? *#?????????????"""" | | ????????????? ??????????????? | | ?????????????? [????????????? | | ?????????????? ?????????????? | | ??????????????? ????????????????? | | ???????????????????????????????????? " | | ???????????????????????????????????? "" " | | ??????????????????????????????????????"" " " ""#" | | ???????????????????????????????????????##""" """## | | ??????????????????????????????????????????#"""???# | | ?????????????????????????????????????????????????? | | ?????????????????????????????????????????????????? | | ?????????????????????????????????????????????????? | | ?????????????????????????????????????????????????? | | ?????????????????????????????????????????????????? | | ?????????????????????????????????????????????????? | | ?????????????????????????????????????????????????? | +----------------------------------------------------+ Best States ------------- Heat Dissipation 25 Energy Generation 14 Energy Capacity 265 Matter Stores 300 Matter Capacity 300 Sight Range 16 Terrain Scan Density 10 Armor Coverage 150 Evasion (%) 40 Recoil Reduction 2 Item Schematics ----------------- None Robot Schematics ------------------ None Fabricated ------------ Nothing Alien Tech Used ----------------- None Achievements -------------- None Challenges ------------ None Game ------ Seed PiercingEncryptedDiverter Manual? 0 Play Time 00:21:36 Cumulative 163.5 hours Start 2024.11.04 @ 19:37:56 End 2024.11.04 @ 20:18:02 Sessions 1 Manual Loads 0 Difficulty Rogue Special Mode None Game No. 91 Rogue 70 Adventurer 21 Explorer 0 Win Type - Total 7 Types 5/0/1/1/0/0/0/0/0 Lore% 42 Gallery% 61 Achievement% 49 Wizard Run 0 Options --------- Layout 1 ASCII 0 Keyboard 0 Movement Mouse Keybinds 0 Fullscreen 2 Font 32/SmallcapsGlow Map View 77x35 Zoom Use 0% Tactical HUD 1 Map Filters NONE Filters NONE Steam 1 RUN: 290288e6-6c5f-4342-8a62-0de035078759